bitfinex/quotes_BTCUSD_20220212
["timestamp","ask_amount","ask_price","bid_price","bid_amount"]
[1644648272733,0.00015392,41913.0,41898.0,0.3]
[1644648272931,0.01254454,41906.0,41895.0,0.05]
[1644648273133,0.06380119,41904.0,41891.0,0.0646853]
[1644648273333,0.07634573,41904.0,41891.0,0.0646853]
[1644648273632,0.41741918,41904.0,41896.0,0.24231867]
[1644648274090,0.41741918,41904.0,41892.0,0.31724976]
[1644648274285,0.41741918,41904.0,41886.0,0.0439]
[1644648274485,0.00044648,41902.0,41886.0,0.0439]
[1644648274888,0.01254454,41899.0,41883.0,0.1423]
[1644648275087,0.01254454,41897.0,41883.0,0.1423]
[1644648275285,0.25449457,41890.0,41883.0,0.40844275]
[1644648275485,0.25449457,41890.0,41880.0,0.0001]
[1644648275686,0.25449457,41890.0,41879.0,0.0001]
[1644648275885,0.25449457,41890.0,41878.0,0.06137]
[1644648276285,0.23821965,41888.0,41878.0,0.20367]
[1644648276486,0.23821965,41888.0,41884.0,0.24709257]
[1644648276784,0.00044652,41886.0,41884.0,0.24709257]
[1644648277286,0.00044652,41886.0,41878.0,0.06137]
[1644648277685,0.27840504,41889.0,41878.0,0.06137]
[1644648277926,0.00043362,41885.0,41878.0,0.06137]
[1644648278125,0.00043362,41885.0,41878.0,0.06102839]
[1644648278329,0.00043362,41885.0,41881.0,0.3097843]
[1644648278529,0.00043362,41885.0,41883.0,0.21044968]
[1644648278730,0.00043362,41885.0,41883.0,0.35274968]
[1644648278930,0.00014953,41903.0,41884.0,0.1423]
[1644648279130,0.00043363,41886.0,41884.0,0.1423]
[1644648279530,0.00043363,41886.0,41885.0,0.1423]
[1644648279932,0.00014953,41903.0,41887.0,0.1423]
[1644648280333,0.0017336,41910.0,41889.0,0.1423]
[1644648280532,0.0017336,41910.0,41890.0,0.38416668]
[1644648280734,0.21054806,41905.0,41897.0,0.19976195]
[1644648281133,0.21054806,41905.0,41896.0,0.08092556]
[1644648281584,0.00044622,41903.0,41896.0,0.08092556]
[1644648281774,0.00044622,41903.0,41890.0,0.0439]
[1644648282173,0.00044622,41903.0,41892.0,0.23633511]
[1644648282174,0.20562496,41900.0,41892.0,0.23633511]
[1644648282372,0.25921328,41898.0,41892.0,0.23633511]
[1644648282574,0.25921328,41898.0,41890.0,0.0439]
[1644648282777,0.25921328,41898.0,41884.0,0.78022783]
[1644648282974,0.25921328,41898.0,41890.0,0.1423]
[1644648283376,0.25921328,41898.0,41889.0,0.08669267]
[1644648283777,0.00044624,41896.0,41893.0,0.26809123]
[1644648283975,0.00044624,41896.0,41889.0,0.08669267]
[1644648284176,0.00044624,41896.0,41883.0,0.05]
[1644648284177,0.00044624,41896.0,41879.0,0.0001]
[1644648284578,0.00044624,41896.0,41877.0,0.0001]
[1644648284779,0.3,41898.0,41877.0,0.0001]
[1644648284977,0.059722,41896.0,41876.0,0.0001]
[1644648285178,0.24947196,41882.0,41876.0,0.0001]
[1644648285436,0.00044623,41890.0,41874.0,0.49418918]
[1644648285633,0.00044623,41890.0,41875.0,0.1423]
[1644648285930,0.00044623,41890.0,41874.0,0.54268344]
[1644648285931,0.00044623,41890.0,41877.0,0.03943877]
[1644648286130,0.00044623,41890.0,41874.0,0.49418918]
[1644648286131,0.0939,41908.0,41874.0,0.53371874]
[1644648286431,0.00044623,41885.0,41884.0,0.07715033]
[1644648286830,0.00044623,41885.0,41883.0,0.20878536]
[1644648287031,0.00044623,41885.0,41878.0,0.1423]
[1644648287230,0.22112978,41890.0,41878.0,0.1423]
[1644648287431,0.00044624,41886.0,41878.0,0.1423]
[1644648287631,0.19446815,41886.0,41875.0,0.36808027]
[1644648287831,0.19446815,41886.0,41882.0,0.07962771]
[1644648288033,0.00044624,41886.0,41882.0,0.27417542]
[1644648288431,0.22112978,41890.0,41882.0,0.27417542]
[1644648288631,0.00044652,41886.0,41882.0,0.27417542]
[1644648289567,0.00014373,41895.0,41882.0,0.27417542]
[1644648289869,0.00044652,41886.0,41883.0,0.57686654]
[1644648290267,0.00044652,41886.0,41883.0,0.67686654]
[1644648290466,0.00044652,41886.0,41883.0,0.62082099]
[1644648290671,0.00044652,41886.0,41885.0,0.1423]
[1644648290868,0.00014373,41895.0,41885.0,0.1423]
[1644648290869,0.00014373,41895.0,41893.0,0.19403389]
[1644648291070,3.663e-05,41896.0,41893.0,0.19403389]
[1644648291272,3.663e-05,41896.0,41891.0,0.0439]
[1644648292475,0.00048313,41896.0,41891.0,0.0439]
[1644648293120,0.00048313,41896.0,41891.0,0.35563835]
[1644648293121,3.663e-05,41896.0,41891.0,0.35563835]
[1644648293326,3.663e-05,41896.0,41891.0,0.49293835]
[1644648293521,0.00048313,41896.0,41891.0,0.49293835]
[1644648293721,0.0004465,41896.0,41891.0,0.49293835]
[1644648293921,0.0004465,41896.0,41893.0,0.1423]
[1644648294321,0.0004465,41896.0,41894.0,0.20363798]
[1644648294619,0.44552581,41904.0,41900.0,0.08400751]
[1644648294821,0.00178542,41910.0,41900.0,0.08400751]
[1644648295621,0.00015392,41913.0,41900.0,0.08400751]
[1644648295824,0.26265175,41909.0,41902.0,0.25321415]
[1644648296021,0.00044647,41907.0,41895.0,0.1862]
[1644648296683,0.00044647,41907.0,41895.0,0.1423]
[1644648296875,0.26265175,41909.0,41895.0,0.1423]
[1644648297079,0.00044648,41903.0,41899.0,0.32350697]
[1644648298178,0.00015392,41913.0,41900.0,0.32022471]
[1644648298381,0.00044648,41903.0,41901.0,0.0439]
[1644648298577,0.00044648,41903.0,41902.0,0.32936456]
[1644648298777,0.00044648,41903.0,41902.0,0.37326456]
[1644648299175,0.20877373,41911.0,41902.0,0.37326456]
[1644648299377,0.19007287,41906.0,41902.0,0.0439]
[1644648299579,0.00043932,41905.0,41902.0,0.0439]
[1644648299779,0.25929295,41905.0,41893.0,0.0439]
[1644648300178,0.25929295,41905.0,41887.0,0.04549264]
[1644648300179,0.0878,41892.0,41887.0,0.04549264]
[1644648300429,0.0878,41892.0,41886.0,0.1423]
[1644648300632,0.0878,41892.0,41890.0,0.20899923]
[1644648300828,0.08823935,41892.0,41890.0,0.20899923]
[1644648301635,0.0878,41892.0,41890.0,0.19441687]
[1644648302429,0.0878,41892.0,41890.0,0.33671687]
[1644648302828,0.1985414,41911.0,41891.0,1.02353372]
[1644648303031,0.00015392,41913.0,41891.0,1.20973372]
[1644648303228,0.00042234,41893.0,41892.0,0.1923]
[1644648303429,0.00042234,41893.0,41892.0,0.2862]
[1644648303631,0.00042234,41893.0,41892.0,0.52027034]
[1644648303828,0.00042234,41893.0,41892.0,0.62027034]
[1644648304076,0.00012567,41904.0,41892.0,0.70812992]
[1644648304271,0.00042234,41895.0,41892.0,0.70812992]
[1644648304472,5.159e-05,41895.0,41892.0,0.70812992]
[1644648304771,5.159e-05,41895.0,41894.0,0.1923]
[1644648304971,5.159e-05,41895.0,41894.0,0.1862]
[1644648305170,5.159e-05,41895.0,41894.0,0.59923615]
[1644648305370,0.00012567,41904.0,41894.0,0.69923615]
[1644648305573,0.00012567,41904.0,41903.0,0.20728273]
[1644648305776,0.00012567,41904.0,41894.0,0.64923615]
[1644648305777,0.00012567,41904.0,41894.0,0.1423]
[1644648306175,0.00012567,41904.0,41888.0,1.39801711]
[1644648306176,0.00012567,41904.0,41888.0,1.35411711]
[1644648306772,0.25471012,41898.0,41895.0,0.07165735]
[1644648307371,0.25471012,41898.0,41888.0,1.49641711]
[1644648307826,0.1907909,41901.0,41891.0,0.1423]
[1644648308027,0.00042615,41897.0,41891.0,0.1423]
[1644648308231,0.00012567,41904.0,41895.0,0.059673]
[1644648308232,5.67e-06,41904.0,41895.0,0.059673]
[1644648308428,5.67e-06,41904.0,41898.0,0.1423]
[1644648308627,5.67e-06,41904.0,41899.0,0.0439]
[1644648308830,0.00011369,41903.0,41899.0,0.0439]
[1644648309228,0.01202192,41901.0,41899.0,0.0439]
[1644648309528,0.02404384,41901.0,41899.0,0.0439]
[1644648309827,0.01204384,41901.0,41900.0,0.1423]
[1644648310032,0.01204384,41901.0,41890.0,0.24]
[1644648310229,0.00015269,41894.0,41891.0,1.35421388]
[1644648310428,0.00015269,41894.0,41891.0,9.39e-05]
[1644648310929,0.21976984,41893.0,41891.0,9.39e-05]
[1644648311333,0.00015269,41894.0,41889.0,0.38935213]
[1644648311584,0.00015269,41894.0,41890.0,0.00031302]
[1644648311777,0.00015269,41894.0,41890.0,0.00217302]
[1644648312677,0.00015269,41894.0,41890.0,0.00186]
[1644648313281,0.00015269,41894.0,41890.0,0.24186]
[1644648313682,0.00015269,41894.0,41891.0,0.1423]
[1644648314683,0.01202192,41892.0,41891.0,0.1423]
[1644648315624,0.01202192,41892.0,41891.0,0.39099655]
[1644648316027,0.01202192,41892.0,41891.0,0.64460855]
[1644648316224,0.01202192,41892.0,41891.0,0.39099655]
[1644648316428,0.01202192,41892.0,41891.0,0.64460855]
[1644648316825,0.01202192,41892.0,41891.0,0.39099655]
[1644648317625,0.01202192,41892.0,41891.0,0.49099655]
[1644648317825,0.00042533,41899.0,41893.0,0.1423]
[1644648318225,0.00042533,41899.0,41893.0,0.4650965]
[1644648318424,0.00042533,41899.0,41893.0,0.2423]
[1644648318826,0.00042533,41899.0,41898.0,0.28132492]
[1644648319277,0.00042533,41899.0,41898.0,0.42362492]
[1644648319877,0.00042533,41899.0,41898.0,0.78252866]
[1644648320080,0.00042533,41899.0,41898.0,0.52362492]
[1644648321278,0.00042533,41899.0,41898.0,0.42362492]
[1644648321683,0.00042533,41899.0,41898.0,0.42548492]
[1644648321880,0.00042533,41899.0,41898.0,0.42562308]
[1644648322080,0.00036533,41899.0,41898.0,0.42562308]
[1644648322580,0.22020944,41912.0,41898.0,0.42562308]
[1644648322581,0.22020944,41912.0,41906.0,0.0727562]
[1644648322826,0.22020944,41912.0,41906.0,0.07289436]
[1644648322827,0.48367528,41912.0,41906.0,0.07289436]
[1644648323226,0.48367528,41912.0,41906.0,0.06789436]
[1644648324127,0.26962028,41913.0,41906.0,0.06789436]
[1644648324527,0.26962028,41913.0,41906.0,0.00013816]
[1644648325529,0.26962028,41913.0,41909.0,0.07833342]
[1644648325828,0.00015392,41913.0,41909.0,0.07847158]
[1644648326030,0.00015392,41913.0,41909.0,0.12847158]
[1644648326428,0.00015392,41913.0,41910.0,0.1862]
[1644648326678,0.00015392,41913.0,41910.0,0.18633816]
[1644648326881,0.00015392,41913.0,41910.0,0.14243816]
[1644648328278,0.00015392,41913.0,41912.0,0.06400306]
[1644648328477,0.00015392,41913.0,41912.0,0.00013816]
[1644648328679,0.00035993,41913.0,41912.0,0.00013816]
[1644648328881,0.22975073,41913.0,41912.0,0.00013816]
[1644648330081,0.21975073,41913.0,41912.0,0.00013816]
[1644648330322,0.21975073,41913.0,41899.0,0.78736473]
[1644648330323,0.09395448,41903.0,41902.0,0.07574304]
[1644648331723,0.295,41914.0,41903.0,0.75]
[1644648331922,0.29802802,41927.0,41905.0,0.059659]
[1644648331923,0.3,41921.0,41905.0,0.059659]
[1644648332126,0.3001,41923.0,41906.0,0.0439]
[1644648332322,0.0001,41922.0,41919.0,0.06417897]
[1644648333224,0.0001,41922.0,41915.0,0.0439]
[1644648334087,0.00031592,41924.0,41915.0,0.0439]
[1644648334277,0.26050344,41927.0,41918.0,0.08309264]
[1644648334278,0.00031592,41925.0,41918.0,0.08309264]
[1644648334477,0.19885732,41926.0,41918.0,0.08309264]
[1644648334681,0.0001,41925.0,41921.0,0.2491443]
[1644648335278,0.00021592,41928.0,41922.0,0.0439]
[1644648335478,0.0001,41928.0,41922.0,0.0439]
[1644648335681,0.19885732,41929.0,41923.0,0.08480833]
[1644648335976,0.0001,41928.0,41924.0,0.0439]
[1644648336579,0.00021592,41930.0,41926.0,0.00426349]
[1644648336580,0.49885732,41930.0,41926.0,0.00426349]
[1644648336780,0.1986414,41929.0,41926.0,0.00426349]
[1644648336978,0.1985414,41927.0,41926.0,0.00426349]
[1644648337182,0.3001,41927.0,41926.0,0.00426349]
[1644648337380,0.18387318,41927.0,41926.0,0.00426349]
[1644648337578,0.41957942,41927.0,41926.0,0.00426349]
[1644648337825,0.23570624,41927.0,41926.0,0.00426349]
[1644648338229,0.22070624,41927.0,41926.0,0.00426349]
[1644648338928,0.22070624,41927.0,41904.0,0.059659]
[1644648338929,0.00010477,41923.0,41903.0,0.9268]
[1644648339129,0.00010477,41923.0,41898.0,0.121183]
[1644648339130,0.24852307,41923.0,41907.0,0.5]
[1644648339328,0.08422478,41917.0,41907.0,0.5]
[1644648339528,0.2484183,41921.0,41903.0,0.0710717]
[1644648339731,0.24703674,41908.0,41901.0,0.00221805]
[1644648339930,0.25527307,41907.0,41901.0,0.00221805]
[1644648340129,0.25527307,41907.0,41903.0,0.5]
[1644648340927,0.25527307,41907.0,41901.0,0.00221805]
[1644648342085,0.3344,41916.0,41906.0,0.07917904]
[1644648342287,0.2484183,41919.0,41906.0,0.07917904]
[1644648342483,0.2484183,41918.0,41906.0,0.07917904]
[1644648342682,0.30353497,41917.0,41906.0,0.07917904]
[1644648342883,0.21116594,41913.0,41906.0,0.07917904]
[1644648343083,0.19192708,41910.0,41906.0,0.07917904]
[1644648343583,0.30353497,41917.0,41906.0,0.07917904]
[1644648343984,0.24863422,41920.0,41906.0,0.07917904]
[1644648344185,0.2980244,41922.0,41906.0,0.07917904]
[1644648344186,0.00021592,41921.0,41906.0,0.07917904]
[1644648344383,0.29105882,41922.0,41906.0,0.07917904]
[1644648344583,0.20697739,41915.0,41901.0,0.00221805]
[1644648345467,0.19620771,41908.0,41901.0,0.00221805]
[1644648346070,0.3,41907.0,41901.0,0.00221805]
[1644648346467,0.19620771,41908.0,41901.0,0.24221805]
[1644648346668,0.21488788,41905.0,41901.0,0.24221805]
[1644648347168,0.37284435,41900.0,41898.0,0.00186]
[1644648348268,0.20663921,41899.0,41898.0,0.00186]
[1644648350176,0.49842556,41899.0,41898.0,0.00186]
[1644648350577,0.7,41898.0,41893.0,0.00038347]
[1644648350778,0.8,41898.0,41888.0,1.35419185]
[1644648350976,0.05,41897.0,41888.0,1.35419185]
[1644648351183,0.2,41895.0,41893.0,0.00038347]
[1644648351377,0.4,41894.0,41893.0,0.00038347]
[1644648351578,0.4439,41894.0,41893.0,0.00038347]
[1644648351780,0.5439,41894.0,41893.0,0.00038347]
[1644648352176,0.6,41893.0,41888.0,0.53757014]
[1644648352376,0.0439,41892.0,41891.0,0.00038349]
[1644648352581,0.0939,41892.0,41891.0,0.00038349]
[1644648352825,0.3939,41892.0,41891.0,0.00038349]
[1644648353024,0.69535009,41892.0,41891.0,0.00038349]
[1644648353226,0.79535009,41892.0,41891.0,0.00038349]
[1644648353426,0.19735117,41889.0,41888.0,0.53757014]
[1644648353726,0.61285198,41889.0,41888.0,0.53757014]
[1644648353926,0.61285198,41889.0,41888.0,0.36562539]
[1644648354130,0.71285198,41889.0,41888.0,0.36562539]
[1644648354528,0.71285198,41889.0,41888.0,0.12613249]
[1644648354926,1.06285198,41889.0,41888.0,0.12613249]
[1644648355129,1.10675198,41889.0,41888.0,5.29e-06]
[1644648356129,1.10675198,41889.0,41876.0,0.0011]
[1644648356130,0.2,41884.0,41876.0,0.0011]
[1644648356329,0.05,41879.0,41876.0,0.0011]
[1644648356594,0.05,41879.0,41864.0,0.05]
[1644648356595,0.2439,41878.0,41864.0,0.05]
[1644648356787,0.05,41874.0,41870.0,0.00013264]
[1644648356986,0.05,41874.0,41871.0,0.00123264]
[1644648356987,0.0439,41873.0,41871.0,0.00123264]
[1644648357186,0.58150002,41873.0,41871.0,0.0011]
[1644648357388,0.88150002,41873.0,41867.0,0.00123264]
[1644648357694,0.88150002,41873.0,41846.0,0.0022]
[1644648357695,0.2,41861.0,41846.0,0.0022]
[1644648357890,0.05,41857.0,41846.0,0.0022]
[1644648358088,0.05,41857.0,41851.0,0.00012767]
[1644648358089,0.05,41854.0,41851.0,0.00012767]
[1644648358286,0.05,41854.0,41850.0,0.00342767]
[1644648358287,0.0939,41854.0,41850.0,0.00342767]
[1644648358486,0.35459536,41854.0,41850.0,0.00342767]
[1644648358887,0.45459536,41854.0,41850.0,0.00342767]
[1644648359287,0.1939,41854.0,41850.0,0.00342767]
[1644648359890,0.37088741,41854.0,41850.0,0.00342767]
[1644648360090,0.32088741,41854.0,41850.0,0.00342767]
[1644648360349,0.22678301,41846.0,41826.0,0.0011]
[1644648360553,0.22678301,41846.0,41799.0,0.9917]
[1644648360554,0.25,41837.0,41799.0,0.9917]
[1644648360754,0.25,41837.0,41797.0,0.240073]
[1644648360755,0.0978,41800.0,41793.0,0.40536791]
[1644648360943,0.0978,41800.0,41786.0,0.50122433]
[1644648360944,0.0978,41800.0,41798.0,0.000903]
[1644648361148,0.0978,41800.0,41799.0,0.19860692]
[1644648361349,0.05,41822.0,41799.0,0.19860692]
[1644648361350,0.20069433,41816.0,41799.0,0.19860692]
[1644648361543,0.03837481,41823.0,41799.0,0.19860692]
[1644648361544,0.0439,41804.0,41799.0,0.19860692]
[1644648361747,0.12993983,41805.0,41799.0,0.1174346]
[1644648361941,0.20433234,41815.0,41799.0,0.11230692]
[1644648361942,0.0439,41815.0,41799.0,0.11230692]
[1644648362145,0.0439,41821.0,41800.0,0.3]
[1644648362341,0.059818,41820.0,41817.0,0.31100877]
[1644648362542,0.059818,41820.0,41818.0,0.2511399]
[1644648362743,0.179486,41826.0,41805.0,0.050903]
[1644648362952,0.179486,41826.0,41805.0,0.000903]
[1644648362953,0.1,41817.0,41805.0,0.000903]
[1644648363143,0.119663,41815.0,41805.0,0.000903]
[1644648363341,0.3,41816.0,41805.0,0.000903]
[1644648363342,0.35,41816.0,41805.0,0.000903]
[1644648363543,0.07695887,41810.0,41807.0,0.25764495]
[1644648363742,0.974,41815.0,41807.0,0.25764495]
[1644648363743,0.2178264,41811.0,41807.0,0.25764495]
[1644648363946,0.1,41830.0,41807.0,0.25764495]
[1644648363947,0.11965778,41818.0,41807.0,0.25764495]
[1644648364179,0.3,41823.0,41813.0,0.05]
[1644648364380,0.059821,41825.0,41808.0,0.00012768]
[1644648364381,0.059817,41821.0,41808.0,0.00012768]
[1644648364577,0.059817,41821.0,41807.0,0.25764495]
[1644648364578,0.059817,41821.0,41814.0,0.18969771]
[1644648364778,0.05980513,41831.0,41819.0,0.05]
[1644648364979,0.11960604,41836.0,41823.0,0.23137354]
[1644648365180,0.3,41840.0,41823.0,0.23137354]
[1644648365181,0.19238469,41840.0,41823.0,0.23137354]
[1644648365380,0.08657601,41846.0,41825.0,0.05]
[1644648365381,0.02678301,41846.0,41825.0,0.05]
[1644648365584,0.02678301,41846.0,41828.0,0.05]
[1644648365585,0.059785,41840.0,41828.0,0.05]
[1644648365784,0.059785,41840.0,41826.0,0.3439]
[1644648365785,0.02678301,41846.0,41834.0,0.05]
[1644648365979,0.02678301,41846.0,41835.0,0.0439]
[1644648366181,0.02678301,41846.0,41845.0,0.23117648]
[1644648366379,0.46235295,41838.0,41836.0,0.18927686]
[1644648366581,0.46235295,41838.0,41837.0,0.0439]
[1644648366979,0.46235295,41838.0,41829.0,0.04402768]
[1644648367181,0.58433381,41825.0,41823.0,0.3]
[1644648367379,0.46235295,41838.0,41821.0,0.7]
[1644648367581,0.46235295,41838.0,41822.0,0.0439]
[1644648367832,0.46235295,41838.0,41823.0,0.3]
[1644648368030,0.46235295,41838.0,41823.0,0.0439]
[1644648368238,0.05,41829.0,41823.0,0.00012772]
[1644648368430,0.3,41828.0,41823.0,0.06724483]
[1644648368629,0.50625295,41838.0,41829.0,0.20200767]
[1644648368630,0.3,41836.0,41829.0,0.20200767]
[1644648368831,0.62510547,41838.0,41829.0,0.20200767]
[1644648369031,0.3,41837.0,41829.0,0.20200767]
[1644648369230,0.3,41837.0,41830.0,0.00036276]
[1644648369430,0.46235295,41838.0,41830.0,0.00036276]
[1644648369431,0.46235295,41838.0,41830.0,0.00049048]
[1644648369830,0.3,41837.0,41830.0,0.00049048]
[1644648370030,0.35,41837.0,41830.0,0.00036276]
[1644648370230,0.46235295,41838.0,41825.0,0.00012772]
[1644648370231,0.76235295,41838.0,41825.0,0.00012772]
[1644648370431,0.76235295,41838.0,41831.0,0.00036275]
[1644648370432,0.3,41837.0,41831.0,0.00036275]
[1644648370834,0.46235295,41838.0,41831.0,0.00036275]
[1644648371232,0.2709829,41837.0,41831.0,0.00036275]
[1644648371432,0.07521475,41835.0,41829.0,0.07648417]
[1644648371683,0.26273951,41834.0,41832.0,0.00036274]
[1644648371881,0.26273951,41834.0,41828.0,0.00012772]
[1644648371882,0.70981195,41833.0,41828.0,0.00012772]
[1644648372079,0.70981195,41833.0,41827.0,0.00012772]
[1644648372080,0.65981195,41833.0,41827.0,0.00012772]
[1644648372278,0.05,41830.0,41826.0,0.00145119]
[1644648372591,0.05,41827.0,41823.0,0.00012772]
[1644648372878,0.48008477,41826.0,41820.0,0.08405237]
[1644648373082,0.26370158,41827.0,41821.0,0.00012772]
[1644648373279,0.05,41839.0,41820.0,0.08405237]
[1644648373280,9.63e-05,41836.0,41820.0,0.08405237]
[1644648373483,9.63e-05,41836.0,41821.0,0.00012772]
[1644648373684,0.059795,41835.0,41821.0,0.00012772]
[1644648373881,0.29,41834.0,41821.0,0.00012772]
[1644648374382,0.05,41828.0,41821.0,0.00012772]
[1644648374581,0.3,41830.0,41822.0,0.22]
[1644648374782,0.059804,41828.0,41822.0,0.22]
[1644648374981,0.109804,41828.0,41822.0,0.22]
[1644648375181,0.05,41826.0,41822.0,0.22]
[1644648375632,0.05,41826.0,41811.0,0.05]
[1644648375633,0.74280091,41822.0,41811.0,0.05]
[1644648375837,0.05,41816.0,41787.0,0.50314988]
[1644648376036,0.3,41815.0,41808.0,0.19690073]
[1644648376329,0.3,41818.0,41808.0,0.19690073]
[1644648376528,0.10372141,41823.0,41808.0,0.19690073]
[1644648376529,0.3,41822.0,41808.0,0.19690073]
[1644648376927,0.1,41825.0,41808.0,0.19690073]
[1644648376928,0.29712243,41825.0,41808.0,0.19690073]
[1644648377128,0.05,41824.0,41821.0,0.075372]
[1644648377328,0.15074399,41820.0,41815.0,0.2184591]
[1644648377529,0.15074399,41820.0,41797.0,0.4]
[1644648377530,0.15074399,41820.0,41807.0,0.00012776]
[1644648377728,0.3,41819.0,41814.0,0.00043809]
[1644648377928,0.3,41819.0,41803.0,0.03543809]
[1644648378128,0.2690726,41819.0,41810.0,0.23084797]
[1644648378328,0.15074399,41820.0,41814.0,0.07203333]
[1644648378731,0.2,41817.0,41813.0,0.00012776]
[1644648378930,0.15074399,41820.0,41812.0,0.00012776]
[1644648378931,0.15,41814.0,41812.0,0.00012776]
[1644648379180,0.34364474,41819.0,41798.0,0.00012776]
[1644648379377,0.34364474,41819.0,41791.0,0.05012776]
[1644648379581,0.34364474,41819.0,41794.0,0.03935437]
[1644648379582,0.25869384,41819.0,41794.0,0.03935437]
[1644648379777,0.35074399,41820.0,41815.0,0.07368288]
[1644648380078,0.35074399,41820.0,41815.0,0.02368288]
[1644648380079,0.15074399,41820.0,41815.0,0.02368288]
[1644648380278,0.15074399,41820.0,41815.0,0.02379608]
[1644648381081,0.15074399,41820.0,41815.0,0.0001132]
[1644648381280,0.21055699,41820.0,41815.0,0.0001132]
[1644648381677,0.15074399,41820.0,41815.0,0.0001132]
[1644648382077,0.15074399,41820.0,41817.0,0.20326793]
[1644648382278,0.15074399,41820.0,41818.0,0.24770716]
[1644648382579,0.00130855,41819.0,41818.0,0.24782036]
[1644648383429,0.00130855,41819.0,41818.0,0.0001132]
[1644648385033,0.00130855,41819.0,41809.0,0.0436502]
[1644648385230,0.27190787,41819.0,41816.0,0.0001132]
[1644648385434,0.46015682,41819.0,41816.0,0.0001132]
[1644648385632,0.35,41817.0,41816.0,0.0001132]
[1644648385831,0.46608463,41817.0,41816.0,0.0001132]
[1644648386134,0.26608463,41817.0,41816.0,0.0001132]
[1644648386332,0.00130855,41819.0,41816.0,0.0001132]
[1644648386986,0.20130855,41819.0,41816.0,0.0001132]
[1644648387185,9.865e-05,41814.0,41813.0,0.08565447]
[1644648387484,9.865e-05,41814.0,41813.0,0.08578222]
[1644648387687,9.865e-05,41814.0,41813.0,0.08565447]
[1644648388884,9.865e-05,41814.0,41810.0,0.00010864]
[1644648389486,9.865e-05,41814.0,41804.0,0.00012775]
[1644648389687,9.865e-05,41814.0,41810.0,0.00036186]
[1644648389990,0.4,41811.0,41810.0,0.00036186]
[1644648390194,0.4,41811.0,41802.0,0.00012775]
[1644648390195,0.00072372,41809.0,41802.0,0.00012775]
[1644648390445,0.25434888,41791.0,41785.0,0.2511]
[1644648391045,0.25434888,41791.0,41786.0,0.25960933]
[1644648391250,0.24934888,41791.0,41786.0,0.25960933]
[1644648391444,0.24934888,41791.0,41787.0,0.24380406]
[1644648391843,0.24054206,41791.0,41787.0,0.24380406]
[1644648392044,0.24054206,41791.0,41787.0,8.526e-05]
[1644648392644,0.3,41800.0,41788.0,0.7]
[1644648392845,0.3,41807.0,41788.0,0.73499994]
[1644648393044,0.00072372,41809.0,41800.0,0.21045197]
[1644648393444,0.00072372,41809.0,41804.0,0.18994548]
[1644648393647,0.00072372,41809.0,41801.0,0.00012778]
[1644648393846,0.00072372,41809.0,41800.0,0.21045197]
[1644648394091,0.00072372,41809.0,41807.0,0.25223973]
[1644648394285,0.00072372,41809.0,41795.0,1.97670576]
[1644648394484,0.00072372,41809.0,41801.0,0.00012763]
[1644648394685,0.00072372,41809.0,41807.0,0.24100878]
[1644648394885,0.00054534,41813.0,41807.0,0.24100878]
[1644648394886,9.468e-05,41813.0,41807.0,0.24100878]
[1644648395086,0.59140045,41820.0,41807.0,0.24100878]
[1644648395087,0.04188208,41817.0,41808.0,0.6986]
[1644648395285,0.04188208,41817.0,41808.0,0.00012763]
[1644648395486,0.3,41818.0,41807.0,0.28490878]
[1644648395686,0.04188208,41817.0,41807.0,0.28490878]
[1644648395884,0.04188208,41817.0,41809.0,0.19532863]
[1644648396285,0.04188208,41817.0,41814.0,0.26110855]
[1644648396489,0.3,41818.0,41814.0,0.26110855]
[1644648396686,0.00130855,41819.0,41814.0,0.26110855]
[1644648396687,0.04188208,41817.0,41814.0,0.26110855]
[1644648396889,0.30130855,41819.0,41810.0,0.00012763]
[1644648397086,0.04188208,41817.0,41809.0,0.19532863]
[1644648397287,0.00130855,41819.0,41809.0,0.19532863]
[1644648397486,0.04188208,41817.0,41814.0,0.07282915]
[1644648397687,0.00130855,41819.0,41814.0,0.07282915]
[1644648397928,0.00130855,41819.0,41815.0,0.18561549]
[1644648398130,0.0017508,41819.0,41815.0,0.18561549]
[1644648398329,0.0017508,41819.0,41816.0,0.19776902]
[1644648398532,0.0017508,41819.0,41818.0,1.84594403]
[1644648398728,0.0017508,41819.0,41818.0,2.0656587]
[1644648399132,0.01885179,41820.0,41819.0,0.7]
[1644648399333,0.00044224,41821.0,41820.0,0.3]
[1644648399528,0.00044224,41821.0,41820.0,0.3439]
[1644648400327,0.04188208,41829.0,41820.0,0.3439]
[1644648400531,0.04188208,41829.0,41820.0,0.0439]
[1644648400730,0.119597,41834.0,41820.0,0.0439]
[1644648401030,0.119597,41834.0,41819.0,0.00012763]
[1644648401031,0.04188208,41822.0,41819.0,0.00012763]
[1644648401231,0.04188208,41825.0,41814.0,0.05]
[1644648401434,0.3,41824.0,41811.0,0.00012763]
[1644648401683,0.34709265,41833.0,41811.0,0.48788242]
[1644648401684,0.04188208,41822.0,41811.0,0.48788242]
[1644648401880,0.3,41821.0,41811.0,0.48788242]
[1644648402087,0.04188208,41817.0,41811.0,0.48788242]
[1644648402482,0.05981,41823.0,41811.0,0.48788242]
[1644648402483,0.34188208,41825.0,41811.0,0.48788242]
[1644648402680,0.3,41824.0,41818.0,0.25078945]
[1644648402879,0.04188208,41825.0,41818.0,0.25078945]
[1644648403081,0.00044224,41821.0,41818.0,0.25078945]
[1644648403280,0.00044224,41821.0,41813.0,0.00012763]
[1644648403482,0.00044224,41821.0,41812.0,0.00047354]
[1644648403483,0.07386448,41820.0,41812.0,0.00047354]
[1644648403683,7.49e-05,41820.0,41812.0,0.00047354]
[1644648403982,7.49e-05,41820.0,41812.0,0.00012763]
[1644648404186,7.49e-05,41820.0,41812.0,0.00034591]
[1644648404382,7.49e-05,41820.0,41817.0,0.25237791]
[1644648404684,7.49e-05,41820.0,41813.0,0.00012763]
[1644648404883,7.49e-05,41820.0,41812.0,0.00047354]
[1644648405085,7.49e-05,41820.0,41812.0,0.00012763]
[1644648405332,7.49e-05,41820.0,41812.0,0.00034591]
[1644648405531,7.49e-05,41820.0,41812.0,0.00047354]
[1644648405932,0.04188208,41816.0,41812.0,0.00047354]
[1644648406133,0.04188208,41818.0,41812.0,0.00034591]
[1644648406333,7.49e-05,41820.0,41812.0,0.00012763]
[1644648406533,7.49e-05,41820.0,41812.0,0.00034591]
[1644648406737,7.49e-05,41820.0,41813.0,0.23399851]
[1644648406934,7.49e-05,41820.0,41813.0,0.23412614]
[1644648407435,0.3000749,41820.0,41813.0,0.00012763]
[1644648407634,0.3000749,41820.0,41811.0,0.17944375]
[1644648407836,0.3000749,41820.0,41812.0,0.00034591]
[1644648408037,0.34195698,41820.0,41812.0,0.00034591]